[Event "Silver Lake Festival 2022"]
[Site "Veliko Gradiste"]
[Date "2022.06.25"]
[Round "8.10"]
[White "Ojas Kulkarni"]
[Black "Petrovic, Dragan R"]
[Result "1/2-1/2"]
[ECO "A26"]
[WhiteElo "2235"]
[BlackElo "2143"]
[Annotator "TA"]
[PlyCount "55"]
[EventDate "2022.06.16"]
[EventType "swiss"]
[EventCountry "SRB"]
[SourceTitle "playchess.com"]
[Source "ChessBase"]
[SourceQuality "1"]
[TimeControl "5400+30"]

{[%evp 16,55,24,8,17,23,43,41,67,60,85,89,93,48,52,48,83,86,86,81,101,56,44,0,49,48,66,53,57,5,21,16,8,11,39,0,16,12,12,12,21,21]} 1. c4 {[%emt 0:00:03]} g6 {[%emt 0:03:58]} 2. g3 {[%emt 0:00:07]} Bg7 {[%emt 0:00:13]} 3. Bg2 {[%emt 0:00:07]} e5 {[%emt 0:01:33]} 4. Nc3 {[%emt 0:00:08]} d6 {[%emt 0:00:14]} 5. d3 {[%emt 0:00:07]} f5 {[%emt 0:01:23]} 6. e4 {[%emt 0:00:11]} Nf6 {[%emt 0:03:02]} 7. Nge2 {[%emt 0:05:18]} O-O {[%emt 0:06:44] 7...Nc6 is the fancy move.} 8. O-O {[%emt 0:00:06]} Nc6 {[%emt 0:04:50]} 9. Nd5 {[%emt 0:00:21]} fxe4 {[%emt 0:04:33] A26: English Opening vs King's Indian with ...Nc6 and d3.} 10. dxe4 {[%emt 0:00:15] [#]} Ng4 $146 {[%emt 0:01:58]} ({Predecessor:} 10... Bg4 11. f3 Be6 12. Be3 Qd7 13. Qd2 Rf7 14. b4 Raf8 15. a4 a6 16. b5 Ne7 17. Qd3 {0-1 (36) Obregon,C (2503)-Bortnyk,O (2604) Chess.com INT 2022}) 11. h3 {[%emt 0:00:59]} Nh6 {[%emt 0:00:06] White is slightly better.} 12. Be3 {[%emt 0:02:31]} Be6 {[%emt 0:02:33]} 13. Qd2 {[%emt 0:06:35]} Nf7 {[%emt 0:00:36]} 14. Rad1 {[%emt 0:01:38] 0x0.0008616af906dp-1022s more active pieces.} Qd7 {[%emt 0:02:45]} 15. Kh2 {[%emt 0:00:19]} Kh8 {[%emt 0:06:24]} 16. b3 {[%emt 0:04:06]} Rac8 {[%emt 0:07:22]} 17. Rc1 {[%emt 0:06:55]} b6 {[%emt 0:02:04]} 18. Rfd1 {[%emt 0:07:53]} Nb8 {[%emt 0:04:14]} 19. Rf1 {[%emt 0:02:00]} c6 {[%emt 0:01:17]} (19... Nc6 $11 {feels stronger.}) 20. Ndc3 {[%emt 0:00:07]} c5 {[%emt 0:05:03]} 21. f4 {[%emt 0:15:10][%cal Of4f5]} Nc6 {[%emt 0:02:13]} 22. Rf2 {[%emt 0:04:10]} (22. f5 $14 gxf5 23. exf5 Bxf5 24. Bxc6 Rxc6 25. g4) 22... Nd4 $11 {[%emt 0:02:20]} 23. Rcf1 {[%emt 0:00:09][%cal Bc1f1,Bf1f2,Bf2f8][%mdl 32]} Rce8 {[%emt 0:07:28]} 24. Nd5 {[%emt 0:08:18]} Nd8 {[%emt 0:10:48]} 25. fxe5 {[%emt 0:10:19] [#] Rxf8+ is the strong threat.} dxe5 {[%emt 0:02:28] The position is equal.} 26. Nec3 {[%emt 0:04:50]} Rxf2 {[%emt 0:03:49]} 27. Rxf2 {[%emt 0:00:02]} Rf8 {[%emt 0:00:19] Inhibits Nf6.} 28. Rxf8+ {[%emt 0:01:39] Weighted Error Value: White=0.14 (very precise) /Black=0.10 (very precise)} 1/2-1/2

[Event "Silver Lake Festival 2022"]
[Site "Veliko Gradiste"]
[Date "2022.06.25"]
[Round "8.11"]
[White "Creanga, Robert-Ionut"]
[Black "Shoshin, Kirill"]
[Result "1-0"]
[ECO "D47"]
[WhiteElo "2201"]
[BlackElo "1938"]
[Annotator "RC"]
[PlyCount "89"]
[EventDate "2022.06.16"]
[EventType "swiss"]
[EventCountry "SRB"]
[SourceTitle "playchess.com"]
[Source "ChessBase"]
[SourceQuality "1"]
[TimeControl "5400+30"]

1. d4 {[%emt 0:00:15]} Nf6 {[%emt 0:00:27]} 2. c4 {[%emt 0:00:23]} e6 {[%emt 0:00:03]} 3. Nf3 {[%emt 0:00:34]} d5 {[%emt 0:00:17]} 4. Nc3 {[%emt 0:00:29]} c6 {[%emt 0:00:04]} 5. e3 {[%emt 0:00:57]} Nbd7 {[%emt 0:00:02]} 6. Bd3 {[%emt 0:01:24]} dxc4 {[%emt 1:32:37]} 7. Bxc4 {[%emt 0:00:23]} b5 {[%emt 0:00:00]} 8. Bd3 {[%emt 0:00:17]} Bb7 {[%emt 0:00:00]} 9. e4 {[%emt 0:04:46]} b4 {[%emt 0:00:00]} 10. Na4 {[%emt 0:00:29]} c5 {[%emt 0:00:00]} 11. e5 {[%emt 0:00:40]} Nd5 {[%emt 0:00:00]} 12. O-O {[%emt 0:00:46]} cxd4 {[%emt 0:00:00]} 13. Re1 {[%emt 0:00:28]} g6 {[%emt 0:00:00]} 14. Bg5 {[%emt 0:11:37]} Qa5 {[%emt 0:00:00]} 15. Nxd4 {[%emt 0:05:45]} a6 {[%emt 0:00:00]} 16. Bd2 {[%emt 0:03:22]} Bg7 {[%emt 0:00:00]} 17. a3 {[%emt 0:01:56]} Nxe5 {[%emt 0:00:00]} 18. Be4 {[%emt 0:01:35]} O-O {[%emt 0:00:00]} 19. axb4 {[%emt 0:10:14]} Qc7 {[%emt 0:00:00]} 20. Rc1 {[%emt 0:05:23]} Qe7 {[%emt 0:00:00]} 21. Nc5 {[%emt 0:08:20]} Nd3 {[%emt 0:00:00]} 22. Nf5 {[%emt 0:16:01]} gxf5 {[%emt 0:00:00]} 23. Bxd3 {[%emt 0:00:48]} Rad8 {[%emt 0:00:00]} 24. Qb3 {[%emt 0:14:51]} Ba8 {[%emt 0:00:00]} 25. Bxf5 {[%emt 0:01:03]} Qf6 {[%emt 0:00:00]} 26. Be4 {[%emt 0:01:53]} Kh8 {[%emt 0:01:25]} 27. Qh3 {[%emt 0:01:20]} h6 {[%emt 0:00:06]} 28. Bxd5 {[%emt 0:02:05]} Rxd5 {[%emt 0:00:26]} 29. Bc3 {[%emt 0:00:34]} Qg6 {[%emt 0:00:19]} 30. Nxe6 {[%emt 0:01:27]} fxe6 {[%emt 0:02:03]} 31. Rxe6 {[%emt 0:00:24]} Bf6 {[%emt 0:06:21]} 32. Rxf6 {[%emt 0:01:27]} Rxf6 {[%emt 0:00:05]} 33. f3 {[%emt 0:04:24]} Kh7 {[%emt 0:02:04]} 34. Qc8 {[%emt 0:00:33]} Rg5 {[%emt 0:00:37]} 35. Qxa8 {[%emt 0:00:26]} Rxg2+ {[%emt 0:00:18]} 36. Kh1 {[%emt 0:00:06]} Rxh2+ {[%emt 0:00:28]} 37. Kxh2 {[%emt 0:00:03]} Qh5+ {[%emt 0:00:01]} 38. Kg3 {[%emt 0:00:37]} Rg6+ {[%emt 0:00:10]} 39. Kf2 {[%emt 0:00:41]} Qh2+ {[%emt 0:01:02]} 40. Ke3 {[%emt 0:00:06]} Re6+ {[%emt 0:00:19]} 41. Kd3 {[%emt 0:00:56]} Qe2+ {[%emt 0:00:31]} 42. Kd4 {[%emt 0:00:05]} Qe3+ {[%emt 0:00:48]} 43. Kc4 {[%emt 0:00:24]} Qxc1 {[%emt 0:00:04]} 44. Qh8+ {[%emt 0:00:10]} Kg6 {[%emt 0:00:01]} 45. Qg7+ {[%emt 0:00:09]} 1-0

[Event "Silver Lake Festival 2022"]
[Site "Veliko Gradiste"]
[Date "2022.06.25"]
[Round "8.12"]
[White "Papaioannou, Dimitrios"]
[Black "Martic, Ivan"]
[Result "0-1"]
[ECO "C88"]
[WhiteElo "2078"]
[BlackElo "2314"]
[Annotator "TA"]
[PlyCount "66"]
[EventDate "2022.06.16"]
[EventType "swiss"]
[EventCountry "SRB"]
[SourceTitle "playchess.com"]
[Source "ChessBase"]
[SourceQuality "1"]
[TimeControl "5400+30"]

{[%evp 19,66,28,18,8,8,4,31,22,16,0,26,32,46,34,45,36,69,70,67,60,62,37,36,0,22,-29,-12,-182,-85,-79,-82,-62,-49,-617,-605,-608,-619,-586,-599,-733,-725,-715,-710,-1111,-783,-847,-841,-1271,-1245]} 1. e4 {[%emt 1:31:00]} e5 {[%emt 1:31:00]} 2. Nf3 {[%emt 0:00:30]} Nc6 {[%emt 0:00:30]} 3. Bb5 {[%emt 0:00:00]} a6 {[%emt 0:00:00]} 4. Ba4 {[%emt 0:00:00]} Nf6 {[%emt 0:00:00]} 5. O-O {[%emt 0:00:00]} Be7 {[%emt 0:00:00]} 6. Re1 {[%emt 0:00:00]} b5 {[%emt 0:00:00]} 7. Bb3 {[%emt 0:00:00]} d6 {[%emt 0:00:00]} 8. a4 {[%emt 0:00:00]} b4 {[%emt 0:00:00]} 9. d4 {[%emt 0:00:00]} O-O {[%emt 0:00:00]} 10. dxe5 {[%emt 0:00:00]} Nxe5 {[%emt 0:00:00]} 11. Nxe5 {[%emt 0:00:00] C88: Closed Ruy Lopez: Anti-Marshall Systems.} dxe5 {[%emt 0:00:00]} 12. Qf3 {[%emt 0:00:00]} Bb7 {[%emt 0:00:00]} 13. Nd2 {[%emt 0:00:00] White is slightly better.} Bc5 {[%emt 0:00:00] [#]} 14. a5 $146 {[%emt 0:00:00]} ({Predecessor:} 14. Bc4 a5 15. Bd3 Qe7 16. Nc4 Rfd8 17. Bg5 h6 18. Bxf6 Qxf6 19. Qxf6 gxf6 20. b3 {1-0 (52) Warmerdam,M (2476)-Svane,R (2615) Chess.com INT 2019}) 14... Kh8 {[%emt 0:00:00][%cal Of6e4]} 15. Qe2 {[%emt 0:00:00]} Qd4 {[%emt 0:00:00][%cal Of6g4]} 16. h3 {[%emt 0:00:00]} (16. Bc4 $5 {[%cal Rd2b3]}) 16... Rad8 {[%emt 0:00:00]} 17. Bc4 {[%emt 0:00:00]} Ba7 {[%emt 0:00:00]} 18. Bd3 {[%emt 0:00:00]} Qd6 {[%emt 0:00:00]} 19. Nc4 {[%emt 0:00:00]} Qe6 {[%emt 0:00:00]} 20. Ra4 {[%emt 0:00:00]} Bc5 {[%emt 0:00:00]} 21. Ra2 {[%emt 0:00:00]} (21. Be3 $5 {[%cal Re3c5]} Be7 22. Bd2 $11) 21... g5 {[%emt 0:00:00]} 22. Bxg5 {[%emt 0:00:00]} (22. Be3 $142 Bxe3 23. Qxe3) 22... Rg8 $11 {[%emt 0:00:00]} 23. h4 {[%emt 0:03:10] [#]} (23. Bh4 $1 $11 {and White has nothing to worry.}) 23... Rg6 {[%emt 0:00:00]} (23... Ng4 $19 {has better winning chances.} 24. Bxd8 Bxf2+ 25. Kh1 Rxd8) 24. Qf3 $17 {[%emt 0:05:21]} h6 {[%emt 0:03:53]} 25. Be3 {[%emt 0:01:00]} Be7 {[%emt 0:00:39][%cal Ob4b3] ...b3! is the strong threat. Black is more active.} 26. Qf5 $2 {[%emt 0:00:26][%mdl 8192] [#]} (26. Ra4 $15) 26... Rxg2+ $3 {[%emt 0:00:34][%cal Bg6g2,Bg2h2,Bh2c2][%mdl 544] Black is clearly winning.} 27. Kf1 {[%emt 0:00:01] Hoping for Qxe6.} Qxf5 {[%emt 0:00:59]} 28. exf5 {[%emt 0:00:01]} Ng4 {[%emt 0:00:53] ( -> ...Bf3)} 29. Nd2 {[%emt 0:02:20] Inhibits Bf3.} b3 {[%emt 0:01:21]} 30. Raa1 {[%emt 0:00:59]} bxc2 {[%emt 0:00:44]} 31. Ne4 {[%emt 0:00:40]} Rh2 {[%emt 0:01:06]} 32. Bxc2 {[%emt 0:00:24]} Nxe3+ {[%emt 0:00:21]} 33. fxe3 {[%emt 0:00:32]} Rxc2 {[%emt 0:00:11] Weighted Error Value: White=0.94/Black=0.34} 0-1

[Event "Silver Lake Festival 2022"]
[Site "Veliko Gradiste"]
[Date "2022.06.26"]
[Round "9.1"]
[White "Mohammad Nubairshah Shaikh"]
[Black "Krstulovic, Alex"]
[Result "1-0"]
[ECO "A16"]
[WhiteElo "2443"]
[BlackElo "2413"]
[Annotator "TA"]
[PlyCount "139"]
[EventDate "2022.06.16"]
[EventType "swiss"]
[EventCountry "SRB"]
[SourceTitle "playchess.com"]
[Source "ChessBase"]
[SourceQuality "1"]
[TimeControl "5400+30"]

{[%evp 9,139,-18,-12,-48,-43,-74,-15,-118,-89,-141,-110,-147,-150,-143,-139,-222,-219,-215,-212,-228,-144,-171,-177,-183,-158,-177,-170,-162,-160,-168,-171,-158,-161,-153,-128,-165,-152,-258,-201,-166,-164,-169,-136,-138,-132,-122,-130,-134,-134,-134,-128,-133,-131,-138,-85,-85,-85,-85,-85,-85,-85,-86,-85,-90,-90,-91,-79,-85,-85,-88,-79,-75,0,-102,0,-83,-21,-18,-38,-56,-10,-10,0,0,80,77,141,139,125,105,186,90,97,131,328,328,328,152,150,143,159,159,156,144,185,170,186,186,186,186,186,167,244,104,330,313,860,860,841,833,3945,3316,5089,4303,5073,1816,29980,29981,29981,29982,29982,29983]} 1. Nf3 {[%emt 0:09:33]} Nf6 {[%emt 0:00:05]} 2. c4 {[%emt 0:00:13]} g6 {[%emt 0:00:05]} 3. Nc3 {[%emt 0:01:02]} Bg7 {[%emt 0:00:08]} 4. e4 {[%emt 0:00:22]} e5 {[%emt 0:00:07] [#]} 5. b4 $146 {[%emt 0:04:43]} ({Predecessor:} 5. Nxe5 O-O 6. Nf3 Re8 7. Bd3 b5 8. O-O bxc4 9. Bxc4 Nxe4 10. Nxe4 d5 11. d3 dxc4 12. dxc4 Qxd1 13. Rxd1 {½-½ (52) Ding,L (2806)-Mamedyarov,S (2759) chess24.com INT 2022}) 5... O-O {[%emt 0:08:16]} 6. Bb2 {[%emt 0:00:19] A16: English Opening: 1...Nf6 with ...d5.} (6. Nxe5 d6 7. Nf3 Nxe4 $1 $17 {[%mdl 512]}) (6. d4 exd4 7. Nxd4 Nxe4 8. Nxe4 Qe7 $17) 6... c6 {[%emt 0:06:27]} 7. Qb3 {[%emt 0:24:13]} d5 {[%emt 0:23:37]} (7... a5 $17 {White must now prevent ...axb4.} 8. b5 (8. Nxe5 $2 axb4 9. Qxb4 Re8 $19) 8... a4) 8. d3 {[%emt 0:01:21]} (8. cxd5 $11 cxd5 9. exd5 (9. Nxd5 Nxe4 10. Bd3 Nxf2 $17)) 8... d4 {[%emt 0:02:32]} 9. Ne2 {[%emt 0:00:15]} ({White should play} 9. Na4) 9... Qc7 {[%emt 0:02:00]} 10. g3 {[%emt 0:00:33]} a5 {[%emt 0:02:52]} 11. a3 {[%emt 0:00:01]} axb4 {[%emt 0:01:37]} 12. axb4 {[%emt 0:00:02]} (12. Bg2 $17) 12... Rxa1+ $19 {[%emt 0:00:05]} 13. Bxa1 {[%emt 0:00:03]} Na6 {[%emt 0:02:39]} ({Weaker is} 13... Bg4 14. Bg2 $17) 14. Bb2 {[%emt 0:04:24]} Nd7 {[%emt 0:15:06]} ({And not} 14... Bg4 15. Bg2 $17) 15. Bg2 {[%emt 0:02:00] [#]} Qb6 $1 {[%emt 0:04:10] Threatens to win with ...Ndc5.} 16. Ba3 {[%emt 0:01:15]} Ndc5 $1 {[%emt 0:02:02]} 17. Qb1 {[%emt 0:01:09] [#]} Nxb4 $1 {[%emt 0:00:17][%mdl 512]} 18. O-O {[%emt 0:00:02]} Nca6 {[%emt 0:00:11]} 19. Ne1 {[%emt 0:11:23]} Re8 {[%emt 0:03:44]} 20. f4 {[%emt 0:02:57]} Qa5 {[%emt 0:04:13]} 21. Qb3 {[%emt 0:02:48]} c5 {[%emt 0:06:18]} 22. Nf3 {[%emt 0:02:26]} f6 {[%emt 0:03:26][%cal Ob7b5]} 23. Kh1 {[%emt 0:03:55]} (23. Ra1 $17) 23... Bd7 {[%emt 0:01:10]} 24. Ra1 {[%emt 0:00:28]} Ra8 {[%emt 0:00:35]} 25. Bb2 {[%emt 0:00:35]} Qb6 {[%emt 0:00:39]} 26. Bc1 {[%emt 0:03:23]} Nc7 {[%emt 0:03:59]} 27. Rxa8+ {[%emt 0:10:43]} Nxa8 {[%emt 0:00:01]} 28. Bd2 {[%emt 0:00:01]} Nc7 {[%emt 0:01:54]} 29. Neg1 {[%emt 0:02:25]} Qa5 {[%emt 0:01:48]} 30. Bh3 {[%emt 0:00:35]} Qa4 {[%emt 0:01:34]} 31. Qb1 {[%emt 0:00:43]} Bxh3 {[%emt 0:03:25]} (31... Be8 $142 32. fxe5 fxe5) 32. Nxh3 $17 {[%emt 0:00:01]} Qc2 {[%emt 0:00:55]} 33. Qxc2 {[%emt 0:00:45]} Nxc2 {[%emt 0:00:01]} 34. fxe5 {[%emt 0:00:01]} fxe5 {[%emt 0:00:02]} 35. Kg2 {[%emt 0:00:01]} Nb4 {[%emt 0:00:54]} 36. Nf2 {[%emt 0:00:23]} Nc6 {[%emt 0:00:55]} 37. Kf1 {[%emt 0:01:40]} b5 {[%emt 0:00:34]} 38. cxb5 {[%emt 0:00:02]} Nxb5 {[%emt 0:00:05]} 39. Ke2 {[%emt 0:00:06]} Nd6 {[%emt 0:00:51]} 40. Bc1 {[%emt 0:00:03]} Nb5 {[%emt 0:00:32]} 41. Bd2 $1 {[%emt 0:00:25]} Nd6 {[%emt 0:00:24]} 42. Bc1 {[%emt 0:00:01]} c4 {[%emt 0:00:18]} (42... h5 $17) 43. dxc4 $11 {[%emt 0:00:14]} Nxc4 {[%emt 0:00:01]} 44. Kd3 {[%emt 0:00:16]} Nb6 {[%emt 0:00:13]} (44... N6a5 $15) 45. Ba3 $1 {[%emt 0:01:10]} Nd7 {[%emt 0:01:38]} 46. Kc4 {[%emt 0:00:17]} Bf8 {[%emt 0:00:32]} (46... Nd8 $11 {remains equal.}) 47. Kd5 $16 {[%emt 0:00:38]} Bxa3 {[%emt 0:00:28]} ({Better is} 47... Nd8 48. Bxf8 Kxf8) 48. Kxc6 {[%emt 0:00:02][%mdl 4096] Endgame KBN-KNN} Nf6 {[%emt 0:00:27][%cal Od4d3]} 49. Nxe5 {[%emt 0:00:03]} Bc1 {[%emt 0:00:36]} (49... Kf8 $16) 50. Nd7 {[%emt 0:00:33]} (50. Ned3 $18 {and White stays clearly on top.} Ba3 51. e5) 50... Kg7 {[%emt 0:00:30]} 51. e5 {[%emt 0:01:20]} Nh5 {[%emt 0:00:29]} (51... Nxd7 $16 {was necessary.} 52. Kxd7 Kf8) 52. Nd3 $18 {[%emt 0:00:01]} Bg5 {[%emt 0:00:28]} 53. Kd5 {[%emt 0:00:06]} (53. N7c5 $18 {is more deadly.}) 53... Kf7 $16 {[%emt 0:00:11]} 54. Kxd4 {[%emt 0:00:49]} Ke7 {[%emt 0:00:11]} 55. Nb6 {[%emt 0:00:45]} Ng7 {[%emt 0:00:21]} 56. Nd5+ {[%emt 0:00:03]} Ke6 {[%emt 0:00:49]} 57. Ke4 {[%emt 0:00:13]} Bd8 {[%emt 0:00:38]} 58. N5f4+ {[%emt 0:00:25]} Kf7 {[%emt 0:00:19]} 59. g4 {[%emt 0:01:43]} Bb6 {[%emt 0:00:47]} 60. Kd5 {[%emt 0:00:28] Hoping for Kd6.} g5 {[%emt 0:00:10]} (60... Bg1 {might work better.}) 61. Ne2 {[%emt 0:04:13]} (61. Nh5 $18 Ne6 62. Nf6) 61... Ke7 $2 {[%emt 0:01:03]} (61... h5 $16) 62. Nc5 $18 {[%emt 0:01:19]} h5 $2 {[%emt 0:00:19] [#]} (62... Bxc5 63. Kxc5 Ne8) 63. h3 $1 {[%emt 0:00:07]} hxg4 {[%emt 0:00:25]} 64. hxg4 {[%emt 0:00:02] And now Nd4 would win.} Ne8 {[%emt 0:00:36]} 65. Nd4 {[%emt 0:01:57]} Bc7 {[%emt 0:00:41]} 66. Ne4 {[%emt 0:01:06]} Kd7 {[%emt 0:00:33]} 67. Nf6+ {[%emt 0:01:09]} (67. e6+ $142 Kc8 68. Nf5) 67... Nxf6+ {[%emt 0:00:26]} 68. exf6 {[%emt 0:00:02] White mates.} Ba5 {[%emt 0:00:31]} 69. f7 {[%emt 0:00:26]} Bb4 {[%emt 0:00:23]} 70. Ne6 {[%emt 0:00:03] White used his chance.  Weighted Error Value: White=0.17 (very precise) /Black=0.26 (precise)} 1-0

[Event "Silver Lake Festival 2022"]
[Site "Veliko Gradiste"]
[Date "2022.06.26"]
[Round "9.2"]
[White "Song, Raymond"]
[Black "Strikovic, Aleksa"]
[Result "1-0"]
[ECO "C41"]
[WhiteElo "2485"]
[BlackElo "2502"]
[Annotator "TA"]
[PlyCount "65"]
[EventDate "2022.06.16"]
[EventType "swiss"]
[EventCountry "SRB"]
[SourceTitle "playchess.com"]
[Source "ChessBase"]
[SourceQuality "1"]
[TimeControl "5400+30"]

{[%evp 16,65,30,34,38,23,25,28,22,24,25,16,77,67,81,70,82,58,64,61,64,67,57,64,63,68,85,87,141,121,135,100,132,85,117,127,168,166,290,337,337,336,339,329,360,360,1349,1344,2158,1847,1847,1746]} 1. d4 d6 2. e4 Nf6 3. Nc3 e5 4. Nf3 Nbd7 5. Bc4 Be7 6. O-O O-O 7. a4 c6 8. Re1 a5 9. h3 Nb6 {9...Nb6 scores better than 9...exd4. C41: Philidor Defence.} 10. Ba2 Nfd7 11. dxe5 dxe5 {White has an edge.} 12. Be3 Qc7 13. Ng5 {[#] Hoping for Nxf7.} Bxg5 (13... Nf6 $1 $11) 14. Bxg5 $16 Nc5 $1 15. Be3 $36 {[%mdl 2048] White is pushing.} Qe7 16. Qh5 Nbd7 {[#]} 17. Rad1 $146 ({Predecessor:} 17. Bg5 Nf6 18. Bh4 Re8 19. Rad1 h6 20. Qf3 Be6 21. Bxe6 Qxe6 22. Rd2 Rad8 23. Red1 Rxd2 24. Rxd2 {0-1 (64) Igonin,T (2074)-Akhmetov,A (2382) Kocaeli 2013}) 17... Nf6 {[%csl LRe4,LRh5]} 18. Qg5 h6 19. Qg3 Kh7 20. f3 Nh5 21. Qf2 Na6 (21... Ne6 $142) 22. Bc4 Re8 23. g4 {[%cal Bg2g4,Bg4g5][%mdl 32]} Nf6 24. h4 (24. f4 $142) 24... Nd7 25. g5 {White is much more active.} Ndc5 26. f4 {[%cal Bf3f4,Bf4f5][%mdl 32] [#] Threatens to win with f5.} Be6 (26... Bg4 {was necessary.}) 27. Bxa6 $18 Nxa6 28. f5 ({Less strong is} 28. fxe5 Bg4 $14) 28... Bd7 29. Kh2 Red8 30. Rg1 {And now gxh6 would win.} hxg5 (30... Rg8 31. g6+ fxg6) 31. hxg5 {[%emt 0:19:37] White is clearly winning.} Be8 {[%emt 0:18:01]} 32. Qh4+ {[%emt 0:00:30]} Kg8 {[%emt 0:00:30]} 33. Kg3 {[%emt 0:00:30] Weighted Error Value: White=0.06 (flawless) /Black=0.27 (precise)} 1-0

[Event "Silver Lake Festival 2022"]
[Site "Veliko Gradiste"]
[Date "2022.06.26"]
[Round "9.3"]
[White "Arias Gaviria, Mario Alexis"]
[Black "Stremavicius, Titas"]
[Result "0-1"]
[ECO "B22"]
[WhiteElo "2181"]
[BlackElo "2508"]
[Annotator "TA"]
[PlyCount "114"]
[EventDate "2022.06.16"]
[EventType "swiss"]
[EventCountry "SRB"]
[SourceTitle "playchess.com"]
[Source "ChessBase"]
[SourceQuality "1"]
[TimeControl "5400+30"]

{[%evp 11,114,11,16,0,6,4,20,23,24,3,12,14,23,0,18,18,34,0,11,0,0,-23,-21,-31,-27,-24,-7,0,0,-16,-18,-24,-7,-20,-22,-23,-15,-57,-45,-45,-28,-24,-27,-56,-62,-61,-52,-54,-57,-85,-54,-54,-54,-54,-54,-54,-54,-53,-59,-45,-19,-18,-21,-32,0,0,0,-352,-108,-397,-399,-733,-753,-760,-638,-745,-722,-914,-923,-933,-925,-916,-803,-1723,-1747,-1534,-1446,-1310,-1215,-29983,-29984,-29986,-29987,-29987,-29988,-29989,-29989,-29990,-29987,-29990,-29991,-29991,-29992,-29994,-29995]} 1. e4 {[%emt 0:07:14]} c5 {[%emt 0:00:27]} 2. c3 {[%emt 0:00:11]} d5 {[%emt 0:01:24]} 3. exd5 {[%emt 0:00:04]} Qxd5 {[%emt 0:00:40]} 4. d4 {[%emt 0:00:07]} Nf6 {[%emt 0:00:00]} 5. Nf3 {[%emt 0:00:36]} e6 {[%emt 0:00:00]} 6. Be2 {[%emt 0:00:26]} Be7 {[%emt 0:01:35]} 7. Be3 {[%emt 0:01:21] B22: Sicilian: 2 c3.} cxd4 {[%emt 0:00:46]} 8. cxd4 {[%emt 0:03:56]} Qa5+ {[%emt 0:04:15]} 9. Nc3 {[%emt 0:00:31] [#] The position is equal.} Nd5 $146 {[%emt 0:00:03]} ({Predecessor:} 9... O-O 10. O-O Nc6 11. a3 Nd5 12. Bd2 Qd8 13. b4 Bf6 14. Nxd5 Qxd5 15. Be3 a6 16. Qc2 g6 17. Rfd1 Bd7 18. Rac1 Rac8 19. Bc4 Qh5 20. Qa2 Ne7 {1-0 (33) Dominguez Pons,E (2211)-Gardela Batlle,J (2228) Barcelona 2009}) 10. Bd2 {[%emt 0:00:17] [#] Black must now prevent Bb5+.} O-O {[%emt 0:00:10]} 11. O-O {[%emt 0:00:51]} Nc6 {[%emt 0:00:19]} 12. Qb3 {[%emt 0:03:30]} Nxc3 {[%emt 0:09:44]} 13. bxc3 {[%emt 0:00:44]} Bf6 {[%emt 0:07:33]} 14. Rfd1 {[%emt 0:01:13]} Qf5 {[%emt 0:05:19]} 15. Be3 {[%emt 0:11:04]} b6 {[%emt 0:00:08]} 16. Qb1 {[%emt 0:00:26]} Qxb1 {[%emt 0:02:32]} 17. Raxb1 {[%emt 0:00:01]} Bb7 {[%emt 0:02:07]} 18. c4 {[%emt 0:01:11]} Ba6 {[%emt 0:00:14]} 19. Kf1 {[%emt 0:00:07]} Rfc8 {[%emt 0:04:39]} 20. Rdc1 {[%emt 0:07:09]} Rd8 {[%emt 0:08:50][%cal Rc6d4]} 21. Rd1 {[%emt 0:00:10]} Rac8 {[%emt 0:00:29]} 22. c5 {[%emt 0:02:14]} Bxe2+ {[%emt 0:00:06]} 23. Kxe2 {[%emt 0:00:02]} Ne7 {[%emt 0:00:14]} 24. cxb6 {[%emt 0:02:47]} axb6 {[%emt 0:00:21]} 25. Rdc1 {[%emt 0:01:09]} Nd5 {[%emt 0:00:22] And now ...Nc3+ would win.} 26. Rxc8 {[%emt 0:01:35]} Rxc8 {[%emt 0:00:02]} 27. Bd2 {[%emt 0:02:10]} Ra8 {[%emt 0:03:53]} 28. Rb2 {[%emt 0:05:47]} h6 {[%emt 0:00:08]} 29. Kd3 {[%emt 0:04:57]} g5 {[%emt 0:00:35]} 30. h3 {[%emt 0:01:43]} Ra4 {[%emt 0:01:48] Black is more active.} 31. Ne5 {[%emt 0:03:57]} Bxe5 {[%emt 0:05:48]} 32. dxe5 $15 {[%emt 0:00:02][%mdl 4096] Endgame KRB-KRN} Kg7 {[%emt 0:01:36]} 33. Be3 {[%emt 0:02:09]} Ra6 {[%emt 0:03:42]} 34. Kc4 {[%emt 0:05:09]} Kg6 {[%emt 0:00:06]} 35. Kb5 {[%emt 0:02:34]} Ra5+ {[%emt 0:00:09]} 36. Kc6 $1 {[%emt 0:00:10]} b5 {[%emt 0:00:20]} 37. g4 {[%emt 0:02:34]} b4 {[%emt 0:08:32]} 38. Bd2 $1 {[%emt 0:03:37]} h5 {[%emt 0:30:34]} 39. Be3 $2 {[%emt 0:13:24][%mdl 8192]} (39. gxh5+ $11 {and White is okay.} Kxh5 40. Kd6) 39... h4 $2 {[%emt 0:00:00]} (39... Nxe3 $19 {has better winning chances.} 40. fxe3 Rxe5 41. Rxb4 Rxe3) 40. Bd2 $2 {[%emt 0:05:15][%mdl 8192] Now White is beyond hope.} (40. Kd6 $17) 40... Ra3 $19 {[%emt 0:00:00]} 41. Be3 $2 {[%emt 0:04:38]} (41. Kd7) 41... Nxe3 {[%emt 0:00:00]} 42. fxe3 {[%emt 0:00:01]} Rxe3 {[%emt 0:00:00]} 43. Rxb4 {[%emt 0:00:03]} Rxh3 {[%emt 0:00:00] aiming for ...Rg3. KR-KR} 44. a4 {[%emt 0:00:26]} Re3 {[%emt 0:00:00]} 45. a5 {[%emt 0:02:17]} Rxe5 {[%emt 0:00:00]} 46. Ra4 {[%emt 0:03:08]} h3 {[%emt 0:00:00] Hoping for ...h2.} 47. Kb6 {[%emt 0:00:02]} h2 {[%emt 0:00:00]} 48. Ra1 {[%emt 0:00:02]} Re2 {[%emt 0:00:00] Strongly threatening ...Rb2+.} 49. a6 {[%emt 0:00:21] [#]} Rb2+ $1 {[%emt 0:00:00]} ({Weaker is} 49... Ra2 50. Rh1 $11) 50. Ka7 {[%emt 0:01:30]} f5 {[%emt 0:00:00][%cal Bf7f5,Bf5g4,Bg4g3,Bg3g2][%mdl 32] Black mates.} 51. Ka8 {[%emt 0:00:34]} fxg4 {[%emt 0:00:00]} 52. a7 {[%emt 0:00:04]} g3 {[%emt 0:00:00]} 53. Rf1 {[%emt 0:00:55]} Rf2 {[%emt 0:00:00]} 54. Re1 {[%emt 0:00:31]} Rf8+ {[%emt 0:00:00]} 55. Kb7 {[%emt 0:00:02]} g2 {[%emt 0:00:00]} 56. Rxe6+ {[%emt 0:00:31]} Kh5 {[%emt 0:00:00]} 57. Rf6 {[%emt 0:00:36]} h1=Q {[%emt 0:00:00] Weighted Error Value: White=0.73/Black=0.09 (flawless)} 0-1